bitfinex-derivatives/quotes_BTCF0:USTF0_20241120
["timestamp","ask_amount","ask_price","bid_price","bid_amount"]
[1732130272432,0.053415,93518.0,93516.0,1.5]
[1732130272623,0.03067576,93517.0,93516.0,1.5]
[1732130272819,0.03067576,93517.0,93511.0,8.364e-05]
[1732130272820,0.39815291,93517.0,93511.0,8.364e-05]
[1732130273032,0.053418,93512.0,93511.0,8.364e-05]
[1732130273224,0.09077518,93512.0,93511.0,8.364e-05]
[1732130273622,0.03735718,93512.0,93511.0,8.364e-05]
[1732130273826,0.03067933,93512.0,93511.0,8.364e-05]
[1732130274231,0.03067933,93512.0,93511.0,0.36088364]
[1732130274437,0.01179974,93512.0,93511.0,0.36088364]
[1732130274733,0.00011406,93516.0,93514.0,0.053417]
[1732130275038,0.0114519,93515.0,93514.0,0.053417]
[1732130275531,0.00011406,93516.0,93514.0,0.053417]
[1732130276633,0.00011406,93516.0,93515.0,0.0582]
[1732130277325,0.00011406,93516.0,93514.0,0.208337]
[1732130277523,0.00011406,93516.0,93511.0,8.364e-05]
[1732130277726,0.053418,93512.0,93511.0,8.364e-05]
[1732130277927,0.20525394,93512.0,93511.0,8.364e-05]
[1732130279139,0.01082359,93512.0,93511.0,8.364e-05]
[1732130279329,0.00011406,93516.0,93511.0,8.364e-05]
[1732130279532,0.053418,93512.0,93511.0,8.364e-05]
[1732130282737,0.06430779,93512.0,93511.0,8.364e-05]
[1732130282942,0.00011406,93516.0,93511.0,8.364e-05]
[1732130283244,1.0,93512.0,93511.0,0.05350164]
[1732130284735,1.0,93512.0,93511.0,0.20846164]
[1732130284938,1.0,93512.0,93511.0,1.70846164]
[1732130287438,1.0,93512.0,93511.0,0.15496]
[1732130288345,1.0,93512.0,93511.0,0.208378]
[1732130288548,1.0,93512.0,93511.0,1.708378]
[1732130288849,0.053419,93510.0,93509.0,0.3608]
[1732130289540,0.053424,93501.0,93500.0,0.10011825]
[1732130289844,0.053424,93501.0,93488.0,0.05580432]
[1732130289845,0.053431,93489.0,93488.0,0.00160432]
[1732130290849,0.0535195,93489.0,93488.0,0.00160432]
[1732130291152,0.4143195,93489.0,93488.0,0.00160432]
[1732130291340,0.3608885,93489.0,93471.0,0.0542]
[1732130291650,0.053432,93487.0,93470.0,0.3608]
[1732130292842,0.053441,93471.0,93470.0,0.3608]
[1732130296248,0.053441,93471.0,93470.0,0.37750133]
[1732130296441,0.414241,93471.0,93470.0,0.01670133]
[1732130296642,0.414241,93471.0,93450.0,0.00105607]
[1732130296643,0.053452,93452.0,93450.0,0.00105607]
[1732130296840,0.3608,93465.0,93450.0,0.00105607]
[1732130297048,0.05345,93456.0,93451.0,0.412]
[1732130297252,0.3608,93465.0,93451.0,0.412]
[1732130297739,0.38611776,93465.0,93451.0,0.412]
[1732130297939,0.05345,93455.0,93451.0,0.412]
[1732130298444,0.05345,93455.0,93451.0,0.465452]
[1732130299256,0.053451,93454.0,93452.0,0.02672556]
[1732130299555,0.053451,93454.0,93453.0,0.02672556]
[1732130300059,0.3608,93470.0,93459.0,0.053448]
[1732130300060,0.38594215,93470.0,93459.0,0.053448]
[1732130300242,0.38594215,93470.0,93453.0,0.02672556]
[1732130300243,0.053446,93462.0,93461.0,0.3608]
[1732130300446,0.053446,93462.0,93461.0,0.38752556]
[1732130300944,0.053446,93462.0,93461.0,0.02672556]
[1732130301149,0.053446,93462.0,93456.0,0.15416]
[1732130301455,0.053449,93457.0,93456.0,0.15416]
[1732130301953,0.053452,93452.0,93451.0,0.412]
[1732130304059,0.053452,93452.0,93450.0,0.00105607]
[1732130305356,0.053452,93452.0,93450.0,0.10357749]
[1732130305548,0.053433,93477.0,93450.0,0.10357749]
[1732130305549,0.053441,93463.0,93458.0,0.053443]
[1732130305747,0.414233,93477.0,93462.0,0.10252142]
[1732130305748,0.3608,93477.0,93462.0,0.10252142]
[1732130305956,0.05344,93463.0,93462.0,0.10252142]
[1732130306459,0.053443,93459.0,93458.0,0.3608]
[1732130306647,0.053443,93459.0,93449.0,0.207608]
[1732130306843,0.053447,93451.0,93449.0,0.15416]
[1732130307356,0.053447,93451.0,93449.0,0.207608]
[1732130307559,0.3608,93477.0,93456.0,0.053444]
[1732130307862,0.053444,93458.0,93457.0,0.10252142]
[1732130308859,0.053444,93458.0,93457.0,0.46332142]
[1732130309064,0.053436,93470.0,93450.0,0.00105607]
[1732130309065,0.053447,93451.0,93450.0,0.00105607]
[1732130309249,0.00012495,93451.0,93450.0,0.00105607]
[1732130313259,0.053447,93452.0,93451.0,0.00070936]
[1732130314251,0.05357631,93452.0,93451.0,0.00070936]
[1732130322167,0.05357631,93452.0,93451.0,0.19149692]
[1732130322466,0.05357631,93452.0,93451.0,0.00070936]
[1732130325178,0.05357631,93452.0,93451.0,0.2551157]
[1732130325469,0.05357631,93452.0,93451.0,0.00070936]
[1732130325669,0.05357631,93452.0,93451.0,0.25679004]
[1732130325670,0.15609773,93452.0,93451.0,0.25679004]
[1732130325867,0.15609773,93452.0,93451.0,0.00070936]
[1732130326054,0.15609773,93452.0,93451.0,0.19277819]
[1732130326255,0.83793773,93452.0,93450.0,8.607e-05]
[1732130326462,0.472882,93451.0,93450.0,8.607e-05]
[1732130330068,0.472882,93451.0,93437.0,0.25608068]
[1732130330069,0.053455,93438.0,93437.0,0.25608068]
[1732130330276,0.053455,93438.0,93435.0,0.25608068]
[1732130330277,0.3608,93438.0,93435.0,0.25608068]
[1732130330574,0.053458,93433.0,93432.0,0.25608068]
[1732130330874,0.053459,93431.0,93430.0,0.0518]
[1732130331290,0.05346,93428.0,93427.0,0.31801032]
[1732130331572,0.053461,93427.0,93426.0,0.67881032]
[1732130331775,0.053461,93427.0,93426.0,0.98993632]
[1732130331966,0.053461,93427.0,93426.0,0.671926]
[1732130332165,0.053461,93427.0,93426.0,0.68073785]
[1732130332362,0.053461,93427.0,93426.0,0.3608]
[1732130336070,0.07784708,93427.0,93426.0,0.3608]
[1732130341485,0.07784708,93427.0,93426.0,0.72110753]
[1732130341679,0.07784708,93427.0,93426.0,0.66764553]
[1732130341880,0.07784708,93427.0,93426.0,0.68062125]
[1732130342075,0.07784708,93427.0,93426.0,0.9874533]
[1732130342275,0.07784708,93427.0,93426.0,0.66763999]
[1732130342480,0.07784708,93427.0,93426.0,0.98748022]
[1732130342673,0.07784708,93427.0,93426.0,0.68064023]
[1732130342880,0.07784708,93427.0,93426.0,0.3608]
[1732130343481,0.07784708,93427.0,93421.0,0.31984023]
[1732130343482,0.053464,93422.0,93421.0,0.25590619]
[1732130343684,0.053464,93421.0,93419.0,0.25590641]
[1732130343891,0.053467,93417.0,93411.0,0.61670641]
[1732130344085,0.10252142,93414.0,93411.0,0.36136]
[1732130344273,0.15598942,93414.0,93411.0,0.3608]
[1732130344883,0.15598942,93414.0,93405.0,0.25590641]
[1732130345280,0.15598942,93414.0,93403.0,0.0506]
[1732130345688,0.47723538,93414.0,93402.0,0.25590641]
[1732130345889,0.47723538,93414.0,93401.0,0.3608]
[1732130346888,0.42376738,93414.0,93401.0,0.3608]
[1732130347083,0.15599642,93402.0,93401.0,0.3608]
[1732130348086,0.053475,93402.0,93401.0,0.3608]
[1732130348285,0.02487266,93414.0,93401.0,0.3608]
[1732130348286,0.02487266,93414.0,93401.0,0.61670641]
[1732130348592,0.02487266,93414.0,93406.0,0.25544302]
[1732130348593,0.053472,93407.0,93406.0,0.25544302]
[1732130348784,0.053472,93407.0,93401.0,0.3608]
[1732130348785,0.02487266,93414.0,93403.0,0.25544302]
[1732130349088,0.053474,93404.0,93403.0,0.25544302]
[1732130349588,0.053474,93404.0,93401.0,0.3608]
[1732130349589,0.053475,93402.0,93401.0,0.3608]
[1732130351574,0.07799898,93402.0,93401.0,0.3608]
[1732130354790,0.02452398,93402.0,93401.0,0.414276]
[1732130354991,0.053474,93405.0,93401.0,0.66971902]
[1732130355288,0.053474,93405.0,93403.0,0.25544302]
[1732130355488,0.053473,93406.0,93404.0,0.053474]
[1732130355893,0.02440452,93414.0,93401.0,0.3608]
[1732130355894,0.12692594,93414.0,93402.0,0.25544302]
[1732130356093,0.12692594,93414.0,93403.0,0.25544302]
[1732130356390,0.10252142,93407.0,93403.0,0.25549476]
[1732130356590,0.053475,93403.0,93402.0,0.25549476]
[1732130357292,0.053475,93403.0,93401.0,0.3608]
[1732130357293,0.053475,93402.0,93401.0,0.3608]
[1732130360283,0.07865234,93402.0,93401.0,0.3608]
[1732130362390,0.07865234,93402.0,93401.0,0.61629476]
[1732130363587,0.07865234,93402.0,93401.0,0.3608]
[1732130363787,0.07865234,93402.0,93401.0,0.61629476]
[1732130363988,0.07865234,93402.0,93401.0,0.3608]
[1732130364186,0.07865234,93402.0,93401.0,0.61629476]
[1732130364595,0.72,93405.0,93404.0,0.053474]
[1732130364798,0.0508647,93405.0,93404.0,0.35337687]
[1732130364989,0.0508647,93405.0,93404.0,1.18626552]
[1732130365185,0.0508647,93405.0,93404.0,2.98626552]
[1732130365390,0.0389647,93405.0,93404.0,2.98626552]
[1732130366095,0.0389647,93405.0,93404.0,2.21266552]
[1732130366301,0.0389647,93405.0,93404.0,2.00577687]
[1732130366995,0.0389647,93405.0,93404.0,0.50577687]
[1732130367587,0.0924387,93405.0,93404.0,0.35232489]
[1732130367792,0.0924387,93405.0,93404.0,0.45125089]
[1732130367995,0.0924387,93405.0,93404.0,0.73588913]
[1732130368198,0.0924387,93405.0,93404.0,0.45125089]
[1732130368393,0.0924387,93405.0,93404.0,0.29885089]
[1732130368594,0.053475,93403.0,93402.0,0.1524]
[1732130368899,0.0389647,93405.0,93401.0,0.36136]
[1732130368900,0.053475,93402.0,93401.0,0.36136]
[1732130369090,0.053475,93402.0,93401.0,0.3608]
[1732130370309,0.0389647,93405.0,93401.0,0.3608]
[1732130370502,0.0389647,93405.0,93404.0,0.053474]
[1732130370805,0.0389647,93405.0,93404.0,0.70607207]
[1732130371298,0.0389647,93405.0,93404.0,0.4083294]
[1732130371499,0.0389647,93405.0,93404.0,0.374674]
[1732130372006,0.0389647,93405.0,93404.0,1.874674]
[1732130372201,0.0389647,93405.0,93404.0,2.22465018]
[1732130372607,0.0389647,93405.0,93404.0,1.874674]
[1732130372797,0.0386647,93405.0,93404.0,2.174674]
[1732130372996,0.0386647,93405.0,93404.0,2.54956426]
[1732130373196,8.596e-05,93414.0,93404.0,2.54956426]
[1732130373197,8.596e-05,93414.0,93413.0,0.053469]
[1732130373398,0.005,93435.0,93413.0,1.2656976]
[1732130373705,0.053452,93444.0,93443.0,0.053451]
[1732130373914,0.053452,93444.0,93443.0,0.51677242]
[1732130374297,0.0484,93448.0,93446.0,0.05345]
[1732130374298,0.02480519,93447.0,93446.0,0.05345]
[1732130374497,7.829e-05,93447.0,93446.0,0.05345]
[1732130374709,0.053451,93444.0,93443.0,0.3608]
[1732130375798,7.829e-05,93447.0,93446.0,0.05345]
[1732130376797,0.05352829,93447.0,93446.0,0.05345]
[1732130377198,0.053451,93444.0,93443.0,0.3608]
[1732130377403,7.829e-05,93447.0,93446.0,0.05345]
[1732130377807,7.829e-05,93447.0,93446.0,0.30865832]
[1732130378000,7.829e-05,93447.0,93446.0,0.05345]
[1732130378797,7.829e-05,93447.0,93446.0,0.30866249]
[1732130378997,7.829e-05,93447.0,93445.0,0.25521249]
[1732130378998,0.05345,93446.0,93445.0,0.25521249]
[1732130379197,7.829e-05,93447.0,93443.0,0.3608]
[1732130379198,7.829e-05,93447.0,93443.0,0.61601249]
[1732130379393,0.053451,93445.0,93443.0,0.61601249]
[1732130380115,0.053451,93445.0,93443.0,0.3608]
[1732130380698,0.05345,93446.0,93444.0,0.15236]
[1732130383320,0.053452,93443.0,93442.0,0.3608]
[1732130383612,0.053452,93443.0,93424.0,0.47225073]
[1732130383613,0.053456,93435.0,93426.0,0.15136]
[1732130383812,0.053461,93427.0,93426.0,0.15136]
[1732130385606,0.0967,93434.0,93419.0,0.3608]
[1732130385812,0.053465,93420.0,93419.0,0.3608]
[1732130385997,0.053465,93420.0,93419.0,0.51216]
[1732130388902,0.053465,93420.0,93419.0,0.3608]
[1732130389110,0.053465,93420.0,93413.0,0.15136]
[1732130389111,0.053467,93416.0,93413.0,0.15136]
[1732130389418,0.053467,93416.0,93400.0,0.4608]
[1732130389419,0.053473,93406.0,93405.0,0.00127]
[1732130390212,0.099873,93406.0,93405.0,0.00127]
[1732130390915,0.053476,93401.0,93400.0,0.1]
[1732130391212,0.0464,93406.0,93398.0,0.00010534]
[1732130391213,0.053477,93399.0,93398.0,0.00010534]
[1732130391425,0.053477,93399.0,93397.0,0.0016058]
[1732130391426,0.3608,93400.0,93397.0,0.0016058]
[1732130391629,0.053482,93390.0,93389.0,0.15136]
[1732130392121,0.053487,93381.0,93376.0,0.15239645]
[1732130392310,0.053487,93382.0,93381.0,0.15136]
[1732130393409,0.05349,93377.0,93376.0,0.17426161]
[1732130393613,0.005,93403.0,93376.0,0.68646161]
[1732130393803,0.053474,93404.0,93395.0,0.15239645]
[1732130393804,0.053479,93396.0,93395.0,0.15239645]
[1732130394006,0.053479,93396.0,93386.0,0.3608]
[1732130394007,0.053483,93388.0,93387.0,0.15239645]
[1732130395916,0.053483,93388.0,93387.0,0.1744526]
[1732130396312,0.353483,93388.0,93387.0,0.1744526]
[1732130396707,0.353483,93388.0,93387.0,0.12469087]
[1732130397213,0.353483,93388.0,93387.0,0.10263472]
[1732130397814,0.353483,93388.0,93386.0,0.3608]
[1732130397815,0.053484,93387.0,93386.0,0.3608]
[1732130398115,0.053484,93387.0,93378.0,0.10263472]
[1732130398116,0.053489,93379.0,93378.0,0.10263472]
[1732130398315,0.053489,93379.0,93378.0,0.46343472]
[1732130401436,0.053489,93379.0,93378.0,0.56606944]
[1732130401623,0.053489,93379.0,93378.0,0.78471472]
[1732130402116,0.053486,93384.0,93382.0,0.053486]
[1732130402323,0.053486,93384.0,93383.0,0.053486]
[1732130402523,0.3,93388.0,93380.0,0.3608]
[1732130402711,0.353483,93388.0,93387.0,0.10263472]
[1732130402909,0.353483,93388.0,93387.0,0.25403472]
[1732130403417,0.353483,93388.0,93387.0,1.75403472]
[1732130403612,0.3,93388.0,93387.0,2.12875872]
[1732130403813,0.3,93388.0,93387.0,2.07527472]
[1732130404019,0.353483,93388.0,93387.0,2.07527472]
[1732130404218,0.353483,93388.0,93387.0,2.12875872]
[1732130404421,0.04616609,93388.0,93387.0,2.42875872]
[1732130404623,0.053472,93408.0,93389.0,0.053482]
[1732130404932,0.053472,93407.0,93406.0,0.3608]
[1732130405128,0.053472,93407.0,93406.0,0.5122]
[1732130405721,0.053472,93407.0,93406.0,1.96343472]
[1732130405919,0.053473,93406.0,93405.0,0.1514]
[1732130406128,0.101373,93406.0,93405.0,0.1514]
[1732130406530,0.151073,93406.0,93405.0,0.1514]
[1732130407029,0.053478,93397.0,93396.0,0.3596]
[1732130407329,0.053474,93405.0,93394.0,0.1514]
[1732130407532,0.053479,93395.0,93394.0,0.1514]
[1732130407834,0.053474,93405.0,93386.0,0.10263472]
[1732130407835,0.3608,93402.0,93386.0,0.10263472]
[1732130408133,0.053484,93387.0,93386.0,0.10263472]
[1732130408324,0.053484,93387.0,93386.0,0.25403472]
[1732130408527,0.053484,93387.0,93377.0,0.10263472]
[1732130408826,0.053484,93387.0,93379.0,0.5122]
[1732130408827,0.053488,93380.0,93379.0,0.5122]
[1732130409320,0.053488,93380.0,93379.0,0.3608]
[1732130411944,0.07524894,93380.0,93379.0,0.3608]
[1732130413855,0.053495,93368.0,93367.0,0.00160633]
[1732130414139,0.053495,93368.0,93367.0,0.15208633]
[1732130415235,0.0218387,93380.0,93367.0,0.47340633]
[1732130415434,0.0218387,93380.0,93379.0,0.10263472]
[1732130415435,0.05356576,93380.0,93379.0,0.10263472]
[1732130416248,0.053492,93373.0,93372.0,0.10263472]
[1732130416460,0.053492,93373.0,93372.0,0.46343472]
[1732130417344,0.053492,93373.0,93372.0,0.3608]
[1732130417539,0.053492,93373.0,93367.0,0.15208633]
[1732130417741,0.053495,93368.0,93367.0,0.00160633]
[1732130418044,0.053495,93368.0,93367.0,0.15208633]
[1732130418239,0.053495,93368.0,93367.0,0.25472105]
[1732130421145,0.053495,93368.0,93367.0,0.61552105]
[1732130421354,7.776e-05,93380.0,93367.0,0.93684105]
[1732130421355,0.0222618,93379.0,93367.0,0.93684105]
[1732130421547,7.776e-05,93380.0,93367.0,0.93684105]
[1732130421548,7.776e-05,93380.0,93379.0,0.10263472]
[1732130421744,7.776e-05,93380.0,93379.0,0.32256352]
[1732130421936,7.776e-05,93380.0,93379.0,0.00263472]
[1732130422447,7.776e-05,93380.0,93378.0,0.51692372]
[1732130422746,7.776e-05,93380.0,93379.0,0.25311472]
[1732130423847,0.0495,93385.0,93384.0,0.053486]
[1732130424062,0.05,93397.0,93394.0,0.05348]
[1732130424237,0.0486,93399.0,93396.0,0.10263472]
[1732130424445,0.053472,93408.0,93396.0,0.10263472]
[1732130424646,0.053472,93408.0,93407.0,0.10263472]
[1732130424954,0.053463,93424.0,93419.0,0.053466]
[1732130425149,0.053463,93424.0,93407.0,0.20526944]
[1732130425150,0.00012711,93423.0,93421.0,0.10263472]
[1732130425353,0.00012711,93423.0,93422.0,0.30657872]
[1732130425944,0.058449,93449.0,93422.0,1.03766944]
[1732130425945,0.053456,93436.0,93422.0,1.03766944]
[1732130426142,0.053456,93436.0,93435.0,0.46343472]
[1732130426550,0.0489,93458.0,93435.0,0.46343472]
[1732130426551,0.07572047,93444.0,93435.0,0.46343472]
[1732130426757,0.053452,93444.0,93443.0,0.10263472]
[1732130426949,0.05354358,93444.0,93443.0,0.25307472]
[1732130427155,0.02210631,93458.0,93443.0,0.61387472]
[1732130427455,0.053443,93460.0,93457.0,0.46343472]
[1732130427648,0.3608,93469.0,93458.0,0.15044]
[1732130427649,0.053443,93459.0,93458.0,0.15044]
[1732130428747,0.053443,93459.0,93458.0,0.30278067]
[1732130429149,0.053443,93459.0,93458.0,0.15234067]
[1732130429354,0.0493,93466.0,93451.0,0.3608]
[1732130429355,0.053447,93453.0,93451.0,0.3608]
[1732130429539,0.053447,93453.0,93452.0,0.15044]
[1732130429741,0.053442,93461.0,93452.0,0.15044]
[1732130430052,0.053442,93461.0,93460.0,0.15234067]
[1732130430550,0.053446,93453.0,93452.0,0.30278067]
[1732130431151,0.053446,93453.0,93451.0,0.3608]
[1732130431356,0.053446,93453.0,93435.0,0.00013854]
[1732130431357,0.053454,93439.0,93435.0,0.00013854]
[1732130431550,0.053454,93439.0,93438.0,0.15204511]
[1732130431755,0.053449,93448.0,93439.0,0.053454]
[1732130432053,0.053449,93448.0,93447.0,0.51314067]
[1732130432254,0.053449,93448.0,93447.0,0.15234067]
[1732130433440,0.38315057,93464.0,93447.0,0.15234067]
[1732130433441,0.3608,93464.0,93447.0,0.15234067]
[1732130433655,0.053443,93458.0,93457.0,0.15234067]
[1732130435852,0.053445,93455.0,93454.0,0.1504]
[1732130436156,0.38253086,93464.0,93450.0,0.1504]
[1732130436344,0.053447,93451.0,93450.0,0.1504]
[1732130441348,0.38253086,93464.0,93450.0,0.1504]
[1732130441560,0.053445,93455.0,93454.0,0.3608]
[1732130442264,0.053445,93455.0,93450.0,0.1504]
[1732130442265,0.053447,93451.0,93450.0,0.1504]
[1732130442454,0.053447,93451.0,93450.0,0.15036]
[1732130443249,0.053441,93463.0,93448.0,0.15234067]
[1732130443555,0.053448,93449.0,93448.0,0.15234067]
[1732130443863,0.053448,93449.0,93448.0,0.30186067]
[1732130444564,0.053448,93449.0,93448.0,0.14952]
[1732130444949,0.053448,93449.0,93446.0,0.15234067]
[1732130445151,0.053452,93442.0,93441.0,0.14952]
[1732130445348,0.053452,93442.0,93438.0,0.00160511]
[1732130445349,0.053454,93439.0,93438.0,1.1e-07]
[1732130445552,0.053454,93439.0,93409.0,0.3608]
[1732130445553,0.053471,93410.0,93409.0,0.3608]
[1732130445762,0.053475,93402.0,93401.0,0.15234067]
[1732130445969,0.053475,93402.0,93401.0,0.51314067]
[1732130446165,0.3658,93428.0,93401.0,0.51314067]
[1732130446166,0.3658,93428.0,93401.0,0.83434067]
[1732130446462,0.053462,93425.0,93424.0,0.15234067]
[1732130447163,0.053462,93425.0,93421.0,0.14952]
[1732130447164,0.053462,93425.0,93423.0,0.3608]
[1732130447353,0.053462,93425.0,93424.0,0.15234067]
[1732130450864,0.053462,93425.0,93424.0,0.10253735]
[1732130451753,0.053462,93425.0,93423.0,0.3608]
[1732130451963,0.053464,93422.0,93415.0,0.3608]
[1732130452166,0.053467,93416.0,93415.0,0.51032]
[1732130452471,0.053467,93416.0,93415.0,0.3608]
[1732130452965,0.3608,93420.0,93404.0,0.3608]
[1732130453167,0.053474,93405.0,93404.0,0.3608]
[1732130455066,0.05357259,93405.0,93404.0,0.3608]
[1732130455277,0.05357259,93405.0,93403.0,0.14952]
[1732130455572,0.05357259,93405.0,93394.0,0.3608]
[1732130455573,0.053476,93401.0,93394.0,0.3608]
[1732130457277,0.053475,93402.0,93396.0,0.15256054]
[1732130457576,0.053475,93402.0,93397.0,0.02253518]
[1732130457763,0.053475,93402.0,93396.0,0.15256054]
[1732130457962,0.053475,93402.0,93401.0,0.14956]
[1732130458857,0.053475,93402.0,93394.0,0.3608]
[1732130459966,0.053475,93402.0,93397.0,0.15256054]
[1732130460565,9.859e-05,93405.0,93404.0,0.053474]
[1732130460876,9.859e-05,93405.0,93404.0,0.414274]
[1732130461372,9.859e-05,93405.0,93404.0,0.053474]
[1732130461876,9.859e-05,93405.0,93400.0,0.02261591]
[1732130461877,0.053476,93401.0,93400.0,9.405e-05]
[1732130462078,0.053476,93401.0,93400.0,0.14965405]
[1732130462262,0.04179859,93405.0,93400.0,0.14965405]
[1732130462263,0.09527359,93405.0,93400.0,0.14965405]
[1732130462468,0.09527359,93405.0,93404.0,0.053474]
[1732130462974,0.09527359,93405.0,93404.0,0.203034]
[1732130463174,0.09527359,93405.0,93404.0,0.14956]
[1732130463369,0.09527359,93405.0,93400.0,9.405e-05]
[1732130463370,0.053476,93401.0,93400.0,9.405e-05]
[1732130463573,0.053476,93401.0,93400.0,0.14965405]
[1732130464980,0.04179859,93405.0,93404.0,0.053474]
[1732130464981,9.859e-05,93405.0,93404.0,0.053474]
[1732130465169,9.859e-05,93405.0,93404.0,0.414274]
[1732130465676,9.859e-05,93405.0,93404.0,0.563834]
[1732130465865,0.05357759,93405.0,93404.0,0.51036]
[1732130466521,0.05357759,93405.0,93404.0,0.14956]
[1732130469180,0.053481,93401.0,93400.0,0.14965405]
[1732130469684,0.053481,93401.0,93400.0,9.405e-05]
[1732130470383,9.859e-05,93405.0,93400.0,0.32129405]
[1732130470570,9.859e-05,93405.0,93404.0,0.41428]
[1732130471076,9.859e-05,93405.0,93404.0,0.05348]
[1732130471277,0.05357759,93405.0,93404.0,0.05348]
[1732130471481,0.05357759,93405.0,93400.0,9.405e-05]
[1732130471482,9.859e-05,93405.0,93400.0,9.405e-05]
[1732130471667,0.053481,93401.0,93400.0,9.405e-05]
[1732130471873,0.053481,93401.0,93400.0,0.05357605]
[1732130472280,0.053481,93401.0,93400.0,0.20313605]
[1732130472970,0.053481,93401.0,93400.0,0.05357605]
[1732130473187,0.053481,93401.0,93400.0,0.20233605]
[1732130473583,0.053481,93401.0,93400.0,0.45731101]
[1732130474485,0.053481,93401.0,93400.0,0.20233605]
[1732130475081,0.053481,93401.0,93400.0,0.14885405]
[1732130475680,0.053481,93401.0,93400.0,0.40476698]
[1732130476082,0.053481,93401.0,93400.0,0.14885405]
[1732130476385,0.053481,93401.0,93400.0,0.40477444]
[1732130476586,0.053481,93401.0,93400.0,0.14885405]
[1732130476775,0.053481,93401.0,93400.0,0.25146507]
[1732130477085,0.053481,93401.0,93400.0,0.5073894]
[1732130477289,0.053481,93401.0,93400.0,0.25146507]
[1732130477594,0.053481,93401.0,93400.0,0.25606834]
[1732130477892,0.053481,93401.0,93390.0,0.25597429]
[1732130477893,0.3608,93401.0,93390.0,0.25597429]
[1732130478191,0.3608,93401.0,93379.0,0.15036601]
[1732130478192,0.053489,93388.0,93387.0,0.25597429]
[1732130478377,0.3608,93391.0,93379.0,0.15036601]
[1732130478378,0.05349,93386.0,93385.0,0.10261102]
[1732130478586,0.3608,93391.0,93382.0,0.14876]
[1732130478891,0.414287,93391.0,93390.0,0.10261102]
[1732130479086,0.414287,93391.0,93386.0,0.25600072]
[1732130479087,0.0451,93390.0,93386.0,0.25600072]
[1732130479286,0.053489,93387.0,93384.0,0.25600072]
[1732130479497,0.05349,93386.0,93385.0,0.25600072]
[1732130479788,0.05349,93385.0,93384.0,0.25600072]
[1732130479989,0.053492,93383.0,93382.0,0.25137102]
[1732130482286,0.053492,93383.0,93382.0,1.60261102]
[1732130482486,0.053492,93383.0,93382.0,1.75137102]
[1732130482781,0.053492,93383.0,93379.0,0.00160601]
[1732130482986,0.053493,93380.0,93379.0,0.00160601]
[1732130484289,0.053493,93380.0,93379.0,0.25755977]
[1732130484887,0.053493,93380.0,93379.0,0.00160601]
[1732130492796,0.053493,93380.0,93379.0,0.05510001]
[1732130493294,0.053493,93380.0,93379.0,0.00160601]
[1732130501413,0.053498,93372.0,93371.0,0.02259562]
[1732130501601,0.42498052,93372.0,93371.0,0.02259562]
[1732130502695,0.3608,93372.0,93352.0,0.25595376]
[1732130502904,0.3608,93372.0,93340.0,0.38246244]
[1732130502905,0.3608,93353.0,93350.0,0.02174888]
[1732130503208,0.053513,93346.0,93345.0,0.00533393]
[1732130503505,0.05351,93351.0,93345.0,0.00533393]
[1732130503506,0.05351,93350.0,93345.0,0.2558381]
[1732130503707,0.05351,93351.0,93345.0,0.00538957]
[1732130503891,0.05351,93351.0,93344.0,0.35844912]
[1732130504092,0.053513,93345.0,93344.0,0.36377289]
[1732130504304,0.3608,93361.0,93345.0,0.32136]
[1732130504512,0.3608,93380.0,93360.0,0.10261102]
[1732130504712,0.053501,93367.0,93366.0,0.053501]
[1732130505005,0.3608,93371.0,93363.0,0.25579707]
[1732130505212,0.414299,93371.0,93370.0,0.053499]
[1732130505414,0.414299,93371.0,93370.0,0.15611002]
[1732130505600,0.3608,93371.0,93370.0,0.15611002]
[1732130505910,0.414298,93371.0,93370.0,0.15611002]
[1732130506206,0.053496,93375.0,93374.0,0.053497]
[1732130506407,0.3608,93380.0,93378.0,0.053494]
[1732130506596,0.3608,93380.0,93378.0,0.15610502]
[1732130506794,0.05348,93404.0,93378.0,0.15610502]
[1732130506994,0.053488,93389.0,93378.0,0.201494]
[1732130507200,0.053488,93389.0,93378.0,2.12538502]
[1732130507405,0.005,93406.0,93394.0,0.053485]
[1732130507721,0.0436,93407.0,93394.0,0.053485]
[1732130507722,0.43632603,93395.0,93394.0,0.30409602]
[1732130508401,0.4364649,93395.0,93394.0,0.30409602]
[1732130509404,0.4364649,93395.0,93394.0,0.62529602]
[1732130509405,0.00013887,93395.0,93394.0,0.62529602]
[1732130509698,0.3608,93419.0,93394.0,0.97442204]
[1732130509901,0.3608,93419.0,93418.0,0.15608302]
[1732130510208,0.3608,93419.0,93418.0,0.25061102]
[1732130510596,0.36087188,93419.0,93418.0,0.25061102]
[1732130510999,0.36087188,93419.0,93418.0,0.10261102]
[1732130511205,0.053475,93412.0,93410.0,0.25584696]
[1732130511408,0.053476,93410.0,93409.0,1.648]
[1732130512006,0.098076,93410.0,93409.0,1.648]
[1732130512311,0.053476,93410.0,93409.0,0.148]
[1732130513100,0.05348,93404.0,93402.0,1.75549291]
[1732130513304,0.053481,93402.0,93401.0,0.14796]
[1732130513504,0.3608,93403.0,93397.0,0.10261102]
[1732130513505,0.053483,93398.0,93397.0,0.10261102]
[1732130514212,0.053483,93398.0,93393.0,1.5]
[1732130514213,0.053485,93394.0,93393.0,1.5]
[1732130514416,0.053485,93394.0,93392.0,0.14796]
[1732130514713,0.053488,93390.0,93389.0,0.10261102]
[1732130514905,0.053488,93390.0,93389.0,0.25057102]
[1732130515105,0.053488,93390.0,93389.0,0.14796]
[1732130515908,0.053489,93387.0,93386.0,0.00010849]
[1732130516114,0.053489,93387.0,93386.0,0.14806849]
[1732130516414,0.053489,93387.0,93386.0,0.00010849]
[1732130516415,0.414289,93387.0,93386.0,0.00010849]
[1732130516920,0.41436088,93387.0,93386.0,0.00010849]
[1732130522106,0.36087188,93387.0,93386.0,0.05359849]
[1732130522307,0.36087188,93387.0,93386.0,0.10271951]
[1732130522308,0.41436088,93387.0,93386.0,0.10271951]
[1732130522709,0.41436088,93387.0,93386.0,0.00010849]
[1732130525114,0.41436088,93387.0,93386.0,0.10271951]
[1732130526412,0.41436088,93387.0,93386.0,0.00010849]
[1732130527706,0.36087188,93387.0,93386.0,0.10271951]
[1732130527910,7.188e-05,93387.0,93386.0,0.47744951]
[1732130528314,0.005,93417.0,93388.0,0.053489]
[1732130528516,0.053475,93412.0,93395.0,0.3608]